fUSD/lending_fUSD_20251011
["ID","MTS","AMOUNT","RATE_DAILY","PERIOD"]
[390916473,1760218232387,-150.0,0.00013698,2]
[390916474,1760218232397,-587.25,0.00013699,2]
[390916475,1760218232406,-3000.0,0.000137,2]
[390916476,1760218232416,-151.0,0.00013712,2]
[390916477,1760218232425,-151.0,0.00013712,2]
[390916478,1760218232435,-151.0,0.00013712,2]
[390916479,1760218232444,-151.0,0.00013712,2]
[390916480,1760218232454,-151.0,0.00013712,2]
[390916481,1760218232464,-151.0,0.00013712,2]
[390916482,1760218232473,-151.0,0.00013712,2]
[390916483,1760218232483,-151.0,0.00013712,2]
[390916484,1760218232492,-151.0,0.00013712,2]
[390916486,1760218232502,-151.0,0.00013712,2]
[390916488,1760218232512,-200.0,0.00013712,2]
[390916490,1760218232521,-151.0,0.00013712,2]
[390916492,1760218232533,-1318.24,0.00013719,2]
[390916494,1760218232542,-3331.83,0.00013731,2]
[390916495,1760218232552,-1838.21,0.00013731,2]
[390916496,1760218232561,-200.0,0.00013836,2]
[390916498,1760218232571,-3240.13,0.00013868,2]
[390916500,1760218232581,-152.7,0.0001391,2]
[390916502,1760218232590,-165.1,0.00013981,2]
[390916504,1760218232599,-766.0,0.00014031,2]
[390916506,1760218232609,-436.0,0.0001406,2]
[390916507,1760218232619,-248.07942623,0.00014075,2]
[390916508,1760218232628,-474.4,0.000141,2]
[390916509,1760218232637,-474.4,0.000141,2]
[390916510,1760218232648,-474.4,0.000141,2]
[390916511,1760218232657,-1438.63,0.000141,2]
[390916512,1760218232667,-694.68,0.000141,2]
[390916513,1760218232679,-572.67457355,0.00014137,2]
[390916514,1760218232688,-239.0,0.00014137,2]
[390916515,1760218232698,-869.0,0.00014168,2]
[390916516,1760218232707,-700.0,0.000142,5]
[390916517,1760218232717,-321.0,0.00014208,2]
[390916518,1760218232727,-1464.0,0.00014239,2]
[390916519,1760218232736,-1301.0,0.00014255,2]
[390916520,1760218232746,-1374.0,0.00014255,2]
[390916521,1760218232756,-181.12,0.00014263,2]
[390916522,1760218232765,-406.0,0.00014278,2]
[390916523,1760218232776,-1400.0,0.000143,5]
[390916524,1760218232786,-1725.0,0.00014309,2]
[390916525,1760218232795,-255.7636636,0.00014325,2]
[390916526,1760218232805,-829.0,0.00014326,2]
[390916527,1760218232819,-1591.0,0.00014326,2]
[390916528,1760218232829,-694.68,0.00014341,2]
[390916529,1760218232838,-2200.0,0.000144,5]
[390916530,1760218232848,-500.0,0.00014438,2]
[390916531,1760218232858,-500.0,0.00014459,2]
[390916532,1760218232867,-2900.0,0.000145,5]
[390916533,1760218232879,-834.88624961,0.00014555,2]
[390916534,1760218232888,-3600.0,0.000146,5]
[390916535,1760218232898,-455.98508482,0.00014654,2]
[390916536,1760218232908,-152.7,0.00014683,2]
[390916537,1760218232918,-1934.03481088,0.00014699,2]
[390916538,1760218232927,-700.0,0.000147,5]
[390916539,1760218232937,-1000.0,0.00014719,2]
[390916540,1760218232947,-1447.6275,0.00014793,2]
[390916541,1760218232957,-13656.36130186,0.00014793,2]
[390916542,1760218232966,-6316.0563858,0.00014793,2]
[390916543,1760218232976,-404.23969679,0.00014793,2]
[390916545,1760218232985,-371.36234755,0.00014793,2]
[390916546,1760218232995,-4051.1803,0.00014795,2]
[390916547,1760218233005,-305.03,0.00014795,2]
[390916548,1760218233015,-700.0,0.000148,5]
[390916549,1760218233025,-151.0,0.00014802,2]
[390916550,1760218233035,-13656.36130181,0.00014805,2]
[390916551,1760218233044,-6316.0563858,0.00014805,2]
[390916552,1760218233054,-371.36234747,0.00014805,2]
[390916553,1760218233064,-404.23969675,0.00014808,2]
[390916554,1760218233074,-13656.36130181,0.00014817,2]
[390916555,1760218233083,-6316.0563858,0.00014817,2]
[390916556,1760218233092,-371.36234747,0.00014817,2]
[390916557,1760218233102,-255.0,0.00014821,2]
[390916558,1760218233112,-404.23969675,0.00014824,2]
[390916559,1760218233122,-13656.36130181,0.00014829,2]
[390916560,1760218233131,-6316.0563858,0.00014829,2]
[390916561,1760218233141,-371.36234747,0.00014829,2]
[390916562,1760218233150,-404.23969675,0.00014839,2]
[390916563,1760218233160,-13656.36130181,0.00014841,2]
[390916564,1760218233170,-6316.0563858,0.00014841,2]
[390916565,1760218233180,-500.0,0.00014849,2]
[390916566,1760218233190,-238.96222296,0.00014849,2]
[390916567,1760218233199,-199.97968189,0.00014849,2]
[390916568,1760218233209,-193.91549868,0.00014849,2]
[390916569,1760218233218,-993.88938372,0.0001485,2]
[390916570,1760218233227,-13656.36130181,0.00014852,2]
[390916571,1760218233236,-6316.0563858,0.00014852,2]
[390916572,1760218233245,-404.23969675,0.00014854,2]
[390916573,1760218233255,-151.0,0.0001486,2]
[390916574,1760218233264,-195.0,0.00014863,2]
[390916575,1760218233276,-250.0,0.00014863,2]
[390916576,1760218233286,-195.0,0.00014863,2]
[390916577,1760218233295,-300.0,0.00014863,2]
[390916578,1760218233306,-250.0,0.00014863,2]
[390916579,1760218233315,-195.0,0.00014863,2]
[390916580,1760218233325,-300.0,0.00014863,2]
[390916581,1760218233334,-300.0,0.00014863,2]
[390916582,1760218233344,-250.0,0.00014863,2]
[390916583,1760218233353,-13656.36130181,0.00014864,2]
[390916584,1760218233363,-6316.0563858,0.00014864,2]
[390916585,1760218233372,-2131.9084,0.00014866,2]
[390916586,1760218233381,-233.2136,0.00014866,2]
[390916587,1760218233390,-404.23969675,0.00014869,2]
[390916588,1760218233400,-13656.36130181,0.00014876,2]
[390916589,1760218233409,-6316.0563858,0.00014876,2]
[390916590,1760218233418,-404.23969675,0.00014885,2]
[390916591,1760218233427,-2500.0,0.00014886,2]
[390916592,1760218233437,-13656.36130181,0.00014888,2]
[390916593,1760218233446,-6316.0563858,0.00014888,2]
[390916594,1760218233455,-151.0,0.0001489,2]
[390916595,1760218233464,-151.0,0.0001489,2]
[390916596,1760218233474,-259.160155,0.0001489,2]
[390916597,1760218233483,-151.0,0.0001489,2]
[390916598,1760218233493,-151.0,0.0001489,2]
[390916599,1760218233502,-151.0,0.0001489,2]
[390916600,1760218233511,-151.0,0.0001489,2]
[390916601,1760218233520,-151.0,0.0001489,2]
[390916602,1760218233532,-151.0,0.0001489,2]
[390916603,1760218233542,-151.0,0.0001489,2]
[390916604,1760218233551,-151.0,0.0001489,2]
[390916605,1760218233561,-151.0,0.0001489,2]
[390916606,1760218233571,-2000.0,0.00014893,2]
[390916607,1760218233580,-1000.0,0.00014893,2]
[390916608,1760218233590,-3113.223,0.00014893,2]
[390916609,1760218233599,-136185.58228766,0.00014893,2]
[390916610,1760218233719,-2951.793793,0.00014893,2]
[390916611,1760218233833,-282.73457065,0.00013593,2]
[390916612,1760218233843,-500.0,0.00013593,2]
[390916613,1760218233854,-94.82542935,0.00013593,2]
[390916740,1760218239707,-400.34922,0.00013593,2]
[390916745,1760218239746,-4.82535065,0.00013593,2]
[390916747,1760218239755,-500.0,0.00013593,2]
[390916749,1760218239765,-236.77464935,0.00013593,2]
[390916751,1760218239776,-263.22535065,0.00013593,2]
[390916753,1760218239786,-190.15464935,0.00013593,2]
[390916766,1760218239901,-309.84535065,0.00013593,2]
[390916769,1760218239910,-500.0,0.00013593,2]
[390916771,1760218239920,-500.0,0.00013593,2]
[390916773,1760218239930,-500.0,0.00013593,2]
[390916775,1760218239940,-18.30464936,0.00013593,2]
[390916778,1760218239959,-481.69535064,0.00013593,2]
[390916780,1760218239971,-500.0,0.00013593,2]
[390916782,1760218239986,-500.0,0.00013593,2]
[390916784,1760218239997,-500.0,0.00013593,2]
[390916787,1760218240007,-500.0,0.00013593,2]
[390916788,1760218240017,-500.0,0.00013593,2]
[390916790,1760218240030,-500.0,0.00013593,2]
[390916792,1760218240040,-500.0,0.00013593,2]
[390916795,1760218240052,-500.0,0.00013593,2]
[390916797,1760218240062,-500.0,0.00013593,2]
[390916799,1760218240072,-566.66944082,0.00013593,2]
[390916801,1760218240083,-523.68252711,0.00014792,2]
[390916803,1760218240093,-278.4271,0.00014793,2]
[390916805,1760218240105,-371.36234747,0.00014841,2]
[390916808,1760218240115,-371.36234747,0.00014852,2]
[390916811,1760218240125,-151.0,0.0001489,2]
[390916814,1760218240136,-159.957869,0.0001489,2]
[390916817,1760218240145,-151.0,0.0001489,2]
[390916819,1760218240155,-159.957869,0.0001489,2]
[390916822,1760218240166,-151.0,0.0001489,2]
[390916824,1760218240175,-151.0,0.0001489,2]
[390916827,1760218240185,-159.957869,0.0001489,2]
[390916829,1760218240194,-151.0,0.0001489,2]
[390916831,1760218240203,-151.0,0.0001489,2]
[390916833,1760218240213,-159.957869,0.0001489,2]
[390916835,1760218240222,-151.0,0.0001489,2]
[390916836,1760218240232,-9954.38939339,0.00014893,2]
[390916839,1760218240243,-43316.92522595,0.00014893,2]
[390916841,1760218240252,-5000.0,0.00014893,2]
[390916843,1760218240262,-256.50294307,0.00014893,2]
[390916845,1760218240271,-151.0,0.00014893,2]
[390916847,1760218240283,-151.0,0.00014893,2]
[390916849,1760218240292,-151.0,0.00014893,2]
[390916851,1760218240301,-151.0,0.00014893,2]
[390916853,1760218240311,-680.247575,0.00014893,2]
[390916855,1760218240320,-64.01850467,0.00014893,2]
[390916857,1760218240331,-616.22907033,0.00014893,2]
[390916859,1760218240344,-680.247575,0.00014893,2]
[390916861,1760218240355,-680.247575,0.00014893,2]
[390916863,1760218240363,-151.0,0.00014893,2]
[390916865,1760218240373,-151.0,0.00014893,2]
[390916867,1760218240382,-151.0,0.00014893,2]
[390916869,1760218240391,-2654.79736,0.00014893,2]
[390916871,1760218240400,-151.0,0.00014893,2]
[390916873,1760218240409,-165.58295,0.00014893,2]
[390916875,1760218240418,-2654.79736,0.00014893,2]
[390916877,1760218240427,-151.0,0.00014893,2]
[390916879,1760218240436,-218.561571,0.00014893,2]
[390916881,1760218240445,-2654.79736,0.00014893,2]
[390916883,1760218240454,-165.58295,0.00014893,2]
[390916885,1760218240463,-209.866065,0.00014893,2]
[390916887,1760218240472,-218.561571,0.00014893,2]
[390916889,1760218240484,-2654.79736,0.00014893,2]
[390916891,1760218240493,-165.58295,0.00014893,2]
[390916893,1760218240503,-218.561571,0.00014893,2]
[390916895,1760218240512,-165.58295,0.00014893,2]
[390916897,1760218240521,-218.561571,0.00014893,2]
[390916899,1760218240533,-277.8493442,0.00014893,2]
[390916900,1760218240543,-171.155529,0.00014893,2]
[390916902,1760218240552,-151.0,0.00014893,2]
[390916904,1760218240561,-171.155529,0.00014893,2]
[390916906,1760218240570,-151.0,0.00014893,2]
[390916908,1760218240580,-151.0,0.00014893,2]
[390916910,1760218240589,-151.0,0.00014893,2]
[390916912,1760218240599,-151.0,0.00014893,2]
[390916914,1760218240608,-151.0,0.00014893,2]
[390916916,1760218240617,-171.155529,0.00014893,2]
[390916918,1760218240627,-171.155529,0.00014893,2]
[390916920,1760218240636,-151.0,0.00014893,2]
[390916922,1760218240646,-151.0,0.00014893,2]
[390916924,1760218240655,-151.0,0.00014893,2]
[390916926,1760218240665,-151.0,0.00014893,2]
[390916928,1760218240678,-222.15256,0.00014893,2]
[390916930,1760218240687,-592.5571,0.00014893,2]
[390916932,1760218240698,-592.5571,0.00014893,2]
[390916934,1760218240716,-592.5571,0.00014893,2]
[390916936,1760218240726,-447.574808,0.00014893,2]
[390916938,1760218240737,-592.5571,0.00014893,2]
[390916940,1760218240750,-151.0,0.00014893,2]
[390916942,1760218240761,-447.574808,0.00014893,2]
[390916944,1760218240771,-151.0,0.00014893,2]
[390916946,1760218240783,-447.574808,0.00014893,2]
[390916949,1760218240800,-151.0,0.00014893,2]
[390916951,1760218240810,-447.574808,0.00014893,2]
[390916953,1760218240820,-151.0,0.00014893,2]
[390916955,1760218240831,-151.0,0.00014893,2]
[390916957,1760218240841,-151.0,0.00014893,2]
[390916959,1760218240850,-151.0,0.00014893,2]
[390916961,1760218240862,-151.0,0.00014893,2]
[390916964,1760218240871,-151.0,0.00014893,2]
[390916965,1760218240882,-151.0,0.00014893,2]
[390916968,1760218240896,-328.062821,0.00014893,2]
[390916970,1760218240916,-151.0,0.00014893,2]
[390916972,1760218240926,-328.062821,0.00014893,2]
[390916974,1760218240938,-328.062821,0.00014893,2]
[390916976,1760218240950,-151.0,0.00014893,2]
[390916978,1760218240962,-151.0,0.00014893,2]
[390916980,1760218240972,-328.062821,0.00014893,2]
[390916982,1760218240983,-210.048306,0.00014893,2]
[390916984,1760218240992,-210.048306,0.00014893,2]
[390916986,1760218241003,-194.497,0.00014893,2]
[390916988,1760218241012,-210.048306,0.00014893,2]
[390916990,1760218241022,-194.497,0.00014893,2]
[390916992,1760218241033,-210.048306,0.00014893,2]
[390916994,1760218241043,-170.931485,0.00014893,2]
[390916996,1760218241052,-194.497,0.00014893,2]
[390916998,1760218241061,-151.0,0.00014893,2]
[390917000,1760218241071,-194.497,0.00014893,2]
[390917002,1760218241080,-170.931485,0.00014893,2]
[390917004,1760218241089,-151.0,0.00014893,2]
[390917006,1760218241098,-170.931485,0.00014893,2]
[390917008,1760218241108,-151.0,0.00014893,2]
[390917010,1760218241117,-166.122635,0.00014893,2]
[390917012,1760218241127,-170.931485,0.00014893,2]
[390917014,1760218241136,-151.0,0.00014893,2]
[390917016,1760218241145,-151.0,0.00014893,2]
[390917018,1760218241154,-166.122635,0.00014893,2]
[390917020,1760218241163,-151.0,0.00014893,2]
[390917022,1760218241173,-178.207151,0.00014893,2]
[390917024,1760218241182,-166.122635,0.00014893,2]
[390917026,1760218241191,-178.207151,0.00014893,2]
[390917028,1760218241200,-166.122635,0.00014893,2]
[390917030,1760218241210,-178.207151,0.00014893,2]
[390917032,1760218241224,-178.207151,0.00014893,2]
[390917034,1760218241234,-151.0,0.00014893,2]
[390917036,1760218241244,-166.178457,0.00014893,2]
[390917038,1760218241253,-151.0,0.00014893,2]
[390917040,1760218241263,-151.0,0.00014893,2]
[390917042,1760218241274,-151.0,0.00014893,2]
[390917044,1760218241286,-151.0,0.00014893,2]
[390917046,1760218241295,-176.663127,0.00014893,2]
[390917048,1760218241305,-151.0,0.00014893,2]
[390917050,1760218241315,-151.0,0.00014893,2]
[390917053,1760218241325,-151.0,0.00014893,2]
[390917055,1760218241334,-151.0,0.00014893,2]
[390917057,1760218241344,-151.0,0.00014893,2]
[390917059,1760218241354,-151.0,0.00014893,2]
[390917061,1760218241363,-239.85686338,0.00014893,2]
[390917063,1760218241373,-151.0,0.00014893,2]
[390917065,1760218241382,-151.0,0.00014893,2]
[390917067,1760218241391,-151.0,0.00014893,2]
[390917069,1760218241401,-159.957869,0.00014893,2]
[390917071,1760218241411,-151.0,0.00014893,2]
[390917073,1760218241420,-151.0,0.00014893,2]
[390917075,1760218241430,-159.957869,0.00014893,2]
[390917077,1760218241440,-151.88386,0.00014893,2]
[390917079,1760218241450,-159.957869,0.00014893,2]
[390917080,1760218241460,-151.0,0.00014893,2]
[390917081,1760218241469,-151.0,0.00014893,2]
[390917082,1760218241479,-159.957869,0.00014893,2]
[390917083,1760218241488,-151.0,0.00014893,2]
[390917084,1760218241498,-256.50294306,0.00014897,2]
[390917085,1760218241508,-160.39800424,0.000149,2]
[390917086,1760218241517,-22106.69821579,0.000149,2]
[390917087,1760218241533,-1405.92349679,0.000149,2]
[390917088,1760218241544,-3180.8655,0.000149,2]
[390917089,1760218241557,-400.0,0.000149,2]
[390917105,1760218241708,-16511.4160278,0.000149,2]
[390917107,1760218241723,-5936.90607606,0.000149,2]
[390917109,1760218241735,-2677.80368012,0.000149,2]
[390917112,1760218241747,-616.85783804,0.000149,2]
[390917296,1760218243352,-371.36234747,0.00014864,2]
[390917298,1760218243362,-151.0,0.0001489,2]
[390917299,1760218243372,-151.0,0.0001489,2]
[390917301,1760218243381,-151.0,0.0001489,2]
[390917303,1760218243391,-151.0,0.0001489,2]
[390917305,1760218243400,-151.0,0.00014893,2]
[390917308,1760218243410,-151.0,0.00014893,2]
[390917310,1760218243419,-151.0,0.00014893,2]
[390917312,1760218243428,-151.0,0.00014893,2]
[390917314,1760218243438,-2718.5291654,0.000149,2]
[390917316,1760218243447,-150.28137833,0.000149,2]
[390917319,1760218243470,-39.75549447,0.000149,2]
[390917321,1760218243479,-256.50294306,0.000149,2]
[390917323,1760218243488,-20.89102944,0.000149,2]
[390917325,1760218243499,-410.19637756,0.000149,2]
[390917327,1760218243509,-431.087407,0.000149,2]
[390917329,1760218243518,-314.43922322,0.000149,2]
[390917331,1760218243532,-116.64818378,0.000149,2]
[390917333,1760218243541,-151.0,0.000149,2]
[390917335,1760218243551,-151.0,0.000149,2]
[390917337,1760218243560,-431.087407,0.000149,2]
[390917339,1760218243570,-151.0,0.000149,2]
[390917342,1760218243579,-700.0,0.000149,5]
[390917343,1760218243589,-151.0,0.000149,2]
[390917345,1760218243598,-153.10031,0.000149,2]
[390917347,1760218243607,-151.0,0.000149,2]
[390917350,1760218243617,-4243.63835997,0.000149,2]
[390917352,1760218243628,-788.73735683,0.000149,2]
[390917542,1760218245581,-151.0,0.0001489,2]
[390917544,1760218245590,-151.0,0.0001489,2]
[390917546,1760218245599,-95.28420988,0.00014893,2]
[390917548,1760218245613,-55.71579012,0.00014893,2]
[390917550,1760218245623,-1558.78657731,0.000149,2]
[390917557,1760218245678,-2168.31,0.000149,2]
[390917562,1760218245723,-516.87084276,0.000149,2]
[390917739,1760218247183,-371.36234747,0.00014876,2]
[390917740,1760218247192,-151.0,0.0001489,2]
[390917741,1760218247202,-294.611744,0.0001489,2]
[390917743,1760218247211,-151.0,0.00014893,2]
[390917745,1760218247220,-4380.01816494,0.000149,2]
[390917747,1760218247229,-151.0,0.000149,2]
[390917749,1760218247239,-151.0,0.000149,2]
[390917751,1760218247248,-151.0,0.000149,2]
[390917753,1760218247258,-151.0,0.000149,2]
[390917755,1760218247268,-445.162878,0.000149,2]
[390917757,1760218247277,-151.0,0.000149,2]
[390917759,1760218247287,-199.942925,0.000149,2]
[390917761,1760218247296,-445.162878,0.000149,2]
[390917763,1760218247306,-151.0,0.000149,2]
[390917765,1760218247315,-151.0,0.000149,2]
[390917767,1760218247324,-445.162878,0.000149,2]
[390917769,1760218247334,-151.0,0.000149,2]
[390917771,1760218247343,-445.162878,0.000149,2]
[390917773,1760218247353,-212.513368,0.000149,2]
[390917775,1760218247362,-151.0,0.000149,2]
[390917777,1760218247371,-151.0,0.000149,2]
[390917779,1760218247379,-151.0,0.000149,2]
[390917781,1760218247388,-151.0,0.000149,2]
[390917783,1760218247397,-151.0,0.000149,2]
[390917785,1760218247407,-186.107673,0.000149,2]
[390917787,1760218247416,-151.0,0.000149,2]
[390917790,1760218247426,-151.0,0.000149,2]
[390917792,1760218247436,-151.0,0.000149,2]
[390917794,1760218247446,-186.107673,0.000149,2]
[390917795,1760218247456,-186.107673,0.000149,2]
[390917797,1760218247465,-186.107673,0.000149,2]
[390917800,1760218247475,-151.0,0.000149,2]
[390917801,1760218247485,-151.0,0.000149,2]
[390917803,1760218247494,-151.0,0.000149,2]
[390917806,1760218247504,-151.0,0.000149,2]
[390917807,1760218247513,-151.0,0.000149,2]
[390917809,1760218247523,-151.0,0.000149,2]
[390917811,1760218247533,-240.080076,0.000149,2]
[390917813,1760218247543,-1466.86880918,0.000149,2]
[390917815,1760218247553,-171.76978453,0.000149,2]
[390917817,1760218247562,-6316.0563858,0.000149,2]
[390917819,1760218247572,-151.0,0.000149,2]
[390917821,1760218247582,-152.575854,0.000149,2]
[390917823,1760218247591,-151.0,0.000149,2]
[390917826,1760218247601,-447.574808,0.000149,2]
[390917828,1760218247611,-447.574808,0.000149,2]
[390917830,1760218247620,-447.574808,0.000149,2]
[390917832,1760218247630,-447.574808,0.000149,2]
[390917833,1760218247641,-151.0,0.000149,2]
[390917836,1760218247651,-151.0,0.000149,2]
[390917837,1760218247660,-151.0,0.000149,2]
[390917840,1760218247671,-328.062821,0.000149,2]
[390917841,1760218247686,-151.548541,0.000149,2]
[390917844,1760218247695,-328.062821,0.000149,2]
[390917845,1760218247704,-328.062821,0.000149,2]
[390917847,1760218247715,-191.64836349,0.000149,2]
[390917849,1760218247724,-151.0,0.000149,2]
[390917850,1760218247733,-328.062821,0.000149,2]
[390917852,1760218247742,-210.048306,0.000149,2]
[390917854,1760218247753,-68.66272232,0.000149,2]
[390917932,1760218248633,-376.33061275,0.000141,2]
[390917940,1760218248708,-318.34938725,0.000141,2]
[390917942,1760218248718,-31.65061275,0.000149,2]
[390918065,1760218262825,-250.0,0.00013466,2]
[390918069,1760218281321,-338.66442121,0.00013413,2]
[390918070,1760218284386,-364.46252104,0.00013413,2]
[390918073,1760218286462,-1296.87305775,0.00013413,2]
[390918076,1760218372506,-463.69261448,0.000135,2]
[390918077,1760218372528,-500.0,0.000135,2]
[390918078,1760218372552,-72.97180673,0.000135,2]
[390918079,1760218428895,3000.0,9.527e-05,2]
[390918080,1760218429474,3000.0,0.00010897,2]
[390918081,1760218431831,3000.0,0.00012267,2]
[390918090,1760218646015,-173.64098352,0.00013399,2]
[390918091,1760218646044,-132.31193454,0.00013498,2]
[390918092,1760218670152,3000.0,9.527e-05,2]
[390918093,1760218670383,3000.0,0.00010897,2]
[390918094,1760218670683,3000.0,0.00012267,2]
[390918097,1760218752831,-200.0,0.00013449,2]
[390918101,1760218787943,-427.55397517,0.00013098,2]
[390918102,1760218790515,-201.99222168,0.00013098,2]
[390918103,1760218808941,200.0,0.0001162,120]
[390918108,1760218880172,-370.45380315,0.00013098,2]
[390918109,1760218880193,-2.26111767,0.00013378,2]
[390918114,1760218905591,2900.0,0.00012267,2]
[390918128,1760219141034,2700.0,0.00012267,2]
[390918223,1760219373231,-500.0,0.00013119,2]
[390918224,1760219373253,-1015.69294936,0.0001316,2]
[390918225,1760219377092,-154.0,0.0001316,2]
[390918226,1760219380863,-163.0,0.0001316,2]
[390918227,1760219383635,-300.0,0.0001316,2]
[390918228,1760219385501,-152.52281191,0.0001316,2]
[390918283,1760219403573,-284.73737155,0.0001316,2]
[390918284,1760219407196,156.0,0.00012474,2]
[390918285,1760219414622,-248.58520764,0.00013148,2]
[390918286,1760219417203,-388.46001522,0.00013148,2]
[390918287,1760219420842,-290.09813136,0.00013148,2]
[390918288,1760219422338,-510.96122503,0.00013148,2]
[390918289,1760219425827,-159.18172378,0.00013148,2]
[390918290,1760219427309,-175.5201652,0.00013148,2]
[390918291,1760219429410,-227.19353177,0.00013148,2]
[390918292,1760219429432,-61.48686718,0.0001316,2]
[390918293,1760219429454,-294.48663293,0.00013161,2]
[390918300,1760219432451,-500.0,0.00013159,2]
[390918301,1760219432461,-340.02852131,0.00013159,2]
[390918302,1760219432471,-1505.51336707,0.00013161,2]
[390918303,1760219432482,-2751.0,0.00013178,2]
[390918304,1760219432491,-250.0,0.00013203,2]
[390918305,1760219432501,-888.60556259,0.00013204,2]
[390918306,1760219432511,-300.0,0.00013394,2]
[390918307,1760219432521,-453.84613802,0.00013394,2]
[390918308,1760219432533,-746.15386198,0.00013394,2]
[390918309,1760219432543,-300.0,0.00013394,2]
[390918310,1760219432552,-1046.0,0.00013409,2]
[390918311,1760219432562,-300.0,0.00013409,2]
[390918312,1760219432571,-67.83224717,0.00013482,2]
[390918313,1760219432583,-82.16775283,0.00013482,2]
[390918314,1760219432593,-151.0,0.00013483,2]
[390918315,1760219432603,-151.0,0.00013483,2]
[390918316,1760219432613,-151.0,0.00013483,2]
[390918317,1760219432623,-151.0,0.00013483,2]
[390918318,1760219432633,-151.0,0.00013483,2]
[390918319,1760219432643,-155.94364059,0.00013483,2]
[390918320,1760219432653,-200.0,0.00013483,2]
[390918321,1760219432662,-288.36442447,0.00013483,2]
[390918322,1760219432671,-151.0,0.00013483,2]
[390918323,1760219432681,-151.0,0.00013483,2]
[390918324,1760219432690,-151.0,0.00013483,2]
[390918326,1760219432700,-19.67424323,0.00013483,2]
[390918328,1760219432712,-131.32575677,0.00013483,2]
[390918330,1760219432722,-151.0,0.00013483,2]
[390918332,1760219432732,-151.0,0.00013483,2]
[390918334,1760219432741,-151.0,0.00013483,2]
[390918336,1760219432751,-151.0,0.00013483,2]
[390918338,1760219432760,-151.0,0.00013483,2]
[390918340,1760219432770,-151.0,0.00013483,2]
[390918342,1760219432779,-213.8052256,0.00013483,2]
[390918344,1760219432790,-500.0,0.00013483,2]
[390918346,1760219432800,-500.0,0.00013483,2]
[390918349,1760219432810,-500.0,0.00013483,2]
[390918351,1760219432828,-151.0,0.00013483,2]
[390918353,1760219432838,-151.0,0.00013483,2]
[390918356,1760219432848,-151.0,0.00013483,2]
[390918360,1760219432858,-151.0,0.00013483,2]
[390918364,1760219432868,-151.0,0.00013483,2]
[390918368,1760219432878,-198.96464858,0.00013538,2]
[390918372,1760219432888,-210.82519084,0.00013538,2]
[390918376,1760219432898,-842.45746258,0.00013538,2]
[390918379,1760219432908,-166.68,0.00013563,2]
[390918381,1760219432918,-2700.0,0.00013637,2]
[390918383,1760219432927,-2468.07,0.00013664,2]
[390918385,1760219432937,-1831.0,0.00013718,2]
[390918387,1760219432946,-472.38,0.00013726,2]
[390918389,1760219432956,-150.0,0.00013742,2]
[390918391,1760219432966,-1500.0,0.00013748,2]
[390918393,1760219432976,-313.0,0.00013756,2]
[390918395,1760219432987,-652.34,0.000138,2]
[390918397,1760219432996,-249.0,0.00013842,2]
[390918399,1760219433006,-1814.0,0.00013871,2]
[390918402,1760219433016,-213.0,0.00013871,2]
[390918403,1760219433031,-1654.0,0.00013894,2]
[390918406,1760219433041,-317.0,0.00013894,2]
[390918407,1760219433051,-772.0,0.00013896,2]